[Event "NJSK 2024 Cm"]
[Site "Groningen, Netherlands"]
[Date "2024.05.03"]
[Round "7.6"]
[White "Zhang, Jinchen"]
[Black "Barbier, Emma"]
[Result "1-0"]
[TimeControl "90min/40moves + 30min + 30sec/move"]
[WhiteElo "1348"]
[BlackElo "1473"]

1. e4 {[%clk 01:30:56]} {[%emt 00:00:03]} e5 {[%clk 01:30:57]} {[%emt
00:00:04]} 2. Nf3 {[%clk 01:31:17]} {[%emt 00:00:09]} Nc6 {[%clk 01:31:23]}
{[%emt 00:00:04]} 3. d4 {[%clk 01:31:41]} {[%emt 00:00:06]} d6 {[%clk
01:31:30]} {[%emt 00:00:23]} 4. dxe5 {[%clk 01:31:44]} {[%emt 00:00:26]} Nxe5
{[%clk 01:31:46]} {[%emt 00:00:14]} 5. Nxe5 {[%clk 01:31:58]} {[%emt 00:00:16]}
dxe5 {[%clk 01:32:11]} {[%emt 00:00:05]} 6. Qxd8+ {[%clk 01:32:15]} {[%emt
00:00:13]} Kxd8 {[%clk 01:32:36]} {[%emt 00:00:05]} 7. Nc3 {[%clk 01:32:14]}
{[%emt 00:00:32]} Bb4 {[%clk 01:32:39]} {[%emt 00:00:27]} 8. Bd2 {[%clk
01:32:14]} {[%emt 00:00:29]} Bg4 {[%clk 01:32:55]} {[%emt 00:00:15]} 9. f3
{[%clk 01:32:06]} {[%emt 00:00:38]} Be6 {[%clk 01:33:18]} {[%emt 00:00:06]} 10.
O-O-O {[%clk 01:31:13]} {[%emt 00:01:23]} Ke8 {[%clk 01:33:20]} {[%emt
00:00:29]} 11. Kb1 {[%clk 01:30:25]} {[%emt 00:01:17]} Ne7 {[%clk 01:33:22]}
{[%emt 00:00:28]} 12. Nb5 {[%clk 01:28:42]} {[%emt 00:02:14]} Rd8 {[%clk
01:32:55]} {[%emt 00:00:57]} 13. c3 {[%clk 01:27:46]} {[%emt 00:01:26]} Ba5
{[%clk 01:32:43]} {[%emt 00:00:40]} 14. Be2 {[%clk 01:26:43]} {[%emt 00:01:34]}
a6 {[%clk 01:32:37]} {[%emt 00:00:36]} 15. Na3 {[%clk 01:25:29]} {[%emt
00:01:44]} Bd7 {[%clk 01:32:10]} {[%emt 00:00:57]} 16. Be3 {[%clk 01:24:36]}
{[%emt 00:01:23]} Be6 {[%clk 01:30:57]} {[%emt 00:01:43]} 17. Rxd8+ {[%clk
01:24:05]} {[%emt 00:01:01]} Kxd8 {[%clk 01:31:21]} {[%emt 00:00:06]} 18. Rd1+
{[%clk 01:24:23]} {[%emt 00:00:12]} Kc8 {[%clk 01:31:23]} {[%emt 00:00:29]} 19.
Bc4 {[%clk 01:24:16]} {[%emt 00:00:37]} Bxc4 {[%clk 01:31:26]} {[%emt
00:00:26]} 20. Nxc4 {[%clk 01:24:15]} {[%emt 00:00:30]} Nc6 {[%clk 01:31:51]}
{[%emt 00:00:06]} 21. b4 {[%clk 01:23:42]} {[%emt 00:01:04]} Bb6 {[%clk
01:31:38]} {[%emt 00:00:42]} 22. Bxb6 {[%clk 01:23:40]} {[%emt 00:00:32]} cxb6
{[%clk 01:32:02]} {[%emt 00:00:06]} 23. Nxb6+ {[%clk 01:23:48]} {[%emt
00:00:22]} Kc7 {[%clk 01:32:21]} {[%emt 00:00:11]} 24. Nc4 {[%clk 01:22:37]}
{[%emt 00:01:41]} f6 {[%clk 01:32:42]} {[%emt 00:00:10]} 25. a4 {[%clk
01:22:10]} {[%emt 00:00:57]} h5 {[%clk 01:32:28]} {[%emt 00:00:44]} 26. a5
{[%clk 01:22:10]} {[%emt 00:00:30]} h4 {[%clk 01:32:46]} {[%emt 00:00:11]} 27.
Nb6 {[%clk 01:22:04]} {[%emt 00:00:36]} g6 {[%clk 01:32:19]} {[%emt 00:00:57]}
28. Rd7+ {[%clk 01:21:42]} {[%emt 00:00:52]} Kb8 {[%clk 01:32:23]} {[%emt
00:00:27]} 29. Rf7 {[%clk 01:21:22]} {[%emt 00:00:50]} Rd8 {[%clk 01:32:12]}
{[%emt 00:00:40]} 30. Rxf6 {[%clk 01:20:22]} {[%emt 00:01:30]} Rd1+ {[%clk
01:32:13]} {[%emt 00:00:29]} 31. Kc2 {[%clk 01:20:09]} {[%emt 00:00:44]} Rh1
{[%clk 01:31:37]} {[%emt 00:01:05]} 32. h3 {[%clk 01:19:46]} {[%emt 00:00:53]}
g5 {[%clk 01:31:52]} {[%emt 00:00:15]} 33. Rg6 {[%clk 01:19:44]} {[%emt
00:00:32]} g4 {[%clk 01:32:15]} {[%emt 00:00:08]} 34. Rxg4 {[%clk 01:19:35]}
{[%emt 00:00:38]} Rg1 {[%clk 01:32:37]} {[%emt 00:00:08]} 35. Kb3 {[%clk
01:18:16]} {[%emt 00:01:49]} Kc7 {[%clk 01:32:38]} {[%emt 00:00:29]} 36. Rxh4
{[%clk 01:17:45]} {[%emt 00:01:02]} Rxg2 {[%clk 01:32:59]} {[%emt 00:00:09]} 37.
Rg4 {[%clk 01:17:03]} {[%emt 00:01:11]} Rf2 {[%clk 01:33:10]} {[%emt 00:00:20]}
38. Rg3 {[%clk 01:16:48]} {[%emt 00:00:44]} Kd8 {[%clk 01:33:09]} {[%emt
00:00:31]} 39. Kc4 {[%clk 01:15:20]} {[%emt 00:01:58]} Ke8 {[%clk 01:32:46]}
{[%emt 00:00:52]} 40. Kd5 {[%clk 01:13:50]} {[%emt 00:02:01]} Ke7 {[%clk
01:33:07]} {[%emt 00:00:09]} 41. Kc5 {[%clk 01:12:41]} {[%emt 00:01:40]} Ke6
{[%clk 01:33:16]} {[%emt 00:00:21]} 42. Nd5 {[%clk 01:10:18]} {[%emt 00:02:53]}
Kd7 {[%clk 01:33:24]} {[%emt 00:00:21]} 43. Rg7+ {[%clk 01:09:19]} {[%emt
00:01:29]} Kc8 {[%clk 01:33:30]} {[%emt 00:00:23]} 44. Kd6 {[%clk 01:07:27]}
{[%emt 00:02:24]} Kb8 {[%clk 01:33:30]} {[%emt 00:00:30]} 45. Nb6 {[%clk
01:06:06]} {[%emt 00:01:51]} Rd2+ {[%clk 01:33:28]} {[%emt 00:00:31]} 46. Ke6
{[%clk 01:04:39]} {[%emt 00:01:57]} Rd8 {[%clk 01:33:35]} {[%emt 00:00:23]} 47.
Rd7 {[%clk 01:03:16]} {[%emt 00:01:52]} Rh8 {[%clk 01:33:36]} {[%emt 00:00:29]}
48. Rg7 {[%clk 01:02:33]} {[%emt 00:01:14]} Rd8 {[%clk 01:33:27]} {[%emt
00:00:36]} 49. h4 {[%clk 01:01:37]} {[%emt 00:01:29]} Rh8 {[%clk 01:33:44]}
{[%emt 00:00:12]} 50. h5 {[%clk 01:01:48]} {[%emt 00:00:20]} Rd8 {[%clk
01:34:10]} {[%emt 00:00:05]} 51. h6 {[%clk 01:02:05]} {[%emt 00:00:12]} Rh8
{[%clk 01:34:35]} {[%emt 00:00:05]} 52. h7 {[%clk 01:02:28]} {[%emt 00:00:07]}
Re8+ {[%clk 01:34:55]} {[%emt 00:00:10]} 53. Kd5 {[%clk 01:02:25]} {[%emt
00:00:33]} Rd8+ {[%clk 01:35:05]} {[%emt 00:00:20]} 54. Kc5 {[%clk 01:02:23]}
{[%emt 00:00:32]} Rd5+ {[%clk 01:34:33]} {[%emt 00:01:01]} 55. Kxd5 {[%clk
01:02:36]} {[%emt 00:00:17]} Nxb4+ {[%clk 01:34:57]} {[%emt 00:00:06]} 56. cxb4
{[%clk 01:02:39]} {[%emt 00:00:27]} Ka7 {[%clk 01:35:25]} {[%emt 00:00:03]} 57.
Rg1 {[%clk 01:02:46]} {[%emt 00:00:22]} Kb8 {[%clk 01:35:50]} {[%emt 00:00:05]}
58. Rg8+ {[%clk 01:03:11]} {[%emt 00:00:06]} Kc7 {[%clk 01:36:13]} {[%emt
00:00:06]} 59. Rc8# {[%clk 01:02:38]} {[%emt 00:00:33]} 1-0

[Event "NJSK 2024 Cm"]
[Site "Groningen, Netherlands"]
[Date "2024.05.03"]
[Round "7.7"]
[White "Ganeshram, Niranjana"]
[Black "Schipper, Sarah"]
[Result "1-0"]
[TimeControl "90min/40moves + 30min + 30sec/move"]
[WhiteElo "1566"]
[BlackElo "1238"]

1. e4 {[%clk 01:30:57]} {[%emt 00:00:02]} e5 {[%clk 01:30:57]} {[%emt
00:00:04]} 2. Nf3 {[%clk 01:31:22]} {[%emt 00:00:05]} Nc6 {[%clk 01:31:16]}
{[%emt 00:00:12]} 3. Bc4 {[%clk 01:31:48]} {[%emt 00:00:03]} Nf6 {[%clk
01:30:31]} {[%emt 00:01:15]} 4. Ng5 {[%clk 01:32:13]} {[%emt 00:00:05]} d5
{[%clk 01:30:27]} {[%emt 00:00:34]} 5. exd5 {[%clk 01:32:36]} {[%emt 00:00:07]}
Nxd5 {[%clk 01:28:58]} {[%emt 00:01:59]} 6. Nxf7 {[%clk 01:32:56]} {[%emt
00:00:09]} Kxf7 {[%clk 00:54:24]} {[%emt 00:35:05]} 7. Qf3+ {[%clk 01:33:20]}
{[%emt 00:00:06]} Qf6 {[%clk 00:52:48]} {[%emt 00:02:06]} 8. Bxd5+ {[%clk
01:33:39]} {[%emt 00:00:10]} Be6 {[%clk 00:52:40]} {[%emt 00:00:39]} 9. Bxe6+
{[%clk 01:33:54]} {[%emt 00:00:14]} Kxe6 {[%clk 00:52:52]} {[%emt 00:00:18]} 10.
Qxf6+ {[%clk 01:34:14]} {[%emt 00:00:10]} Kxf6 {[%clk 00:53:00]} {[%emt
00:00:23]} 11. O-O {[%clk 01:34:37]} {[%emt 00:00:07]} Bd6 {[%clk 00:53:09]}
{[%emt 00:00:21]} 12. Nc3 {[%clk 01:34:45]} {[%emt 00:00:22]} Rhe8 {[%clk
00:52:01]} {[%emt 00:01:39]} 13. d3 {[%clk 01:34:02]} {[%emt 00:01:11]} Kf7
{[%clk 00:52:21]} {[%emt 00:00:11]} 14. Be3 {[%clk 01:32:24]} {[%emt 00:02:06]}
Kg8 {[%clk 00:51:01]} {[%emt 00:01:52]} 15. f4 {[%clk 01:31:13]} {[%emt
00:01:40]} Rf8 {[%clk 00:50:04]} {[%emt 00:01:28]} 16. fxe5 {[%clk 01:30:22]}
{[%emt 00:01:20]} Rxf1+ {[%clk 00:49:34]} {[%emt 00:01:01]} 17. Rxf1 {[%clk
01:30:42]} {[%emt 00:00:09]} Bxe5 {[%clk 00:49:47]} {[%emt 00:00:17]} 18. Bc5
{[%clk 01:27:41]} {[%emt 00:03:31]} b6 {[%clk 00:42:00]} {[%emt 00:08:18]} 19.
Bf2 {[%clk 01:27:27]} {[%emt 00:00:44]} h6 {[%clk 00:41:01]} {[%emt 00:01:29]}
20. Bg3 {[%clk 01:26:46]} {[%emt 00:01:10]} Bxg3 {[%clk 00:40:01]} {[%emt
00:01:31]} 21. hxg3 {[%clk 01:27:09]} {[%emt 00:00:06]} Nb4 {[%clk 00:39:36]}
{[%emt 00:00:55]} 22. Rc1 {[%clk 01:26:09]} {[%emt 00:01:30]} Kf7 {[%clk
00:37:23]} {[%emt 00:02:44]} 23. Nb5 {[%clk 01:26:25]} {[%emt 00:00:15]} c6
{[%clk 00:36:38]} {[%emt 00:01:14]} 24. Nc3 {[%clk 01:26:10]} {[%emt 00:00:45]}
Kf6 {[%clk 00:35:46]} {[%emt 00:01:22]} 25. a3 {[%clk 01:26:20]} {[%emt
00:00:20]} Na6 {[%clk 00:35:20]} {[%emt 00:00:47]} 26. Re1 {[%clk 01:26:26]}
{[%emt 00:00:33]} Nc5 {[%clk 00:35:11]} {[%emt 00:00:38]} 27. Ne4+ {[%clk
01:26:02]} {[%emt 00:00:55]} Nxe4 {[%clk 00:35:13]} {[%emt 00:00:28]} 28. dxe4
{[%clk 01:26:26]} {[%emt 00:00:05]} Ke5 {[%clk 00:35:37]} {[%emt 00:00:07]} 29.
Kf2 {[%clk 01:26:48]} {[%emt 00:00:07]} Rf8+ {[%clk 00:35:45]} {[%emt
00:00:23]} 30. Ke3 {[%clk 01:26:53]} {[%emt 00:00:25]} Rf6 {[%clk 00:36:06]}
{[%emt 00:00:09]} 31. Rh1 {[%clk 01:25:36]} {[%emt 00:01:47]} Rg6 {[%clk
00:36:05]} {[%emt 00:00:31]} 32. Rh3 {[%clk 01:25:59]} {[%emt 00:00:07]} c5
{[%clk 00:35:08]} {[%emt 00:01:28]} 33. b3 {[%clk 01:24:55]} {[%emt 00:01:33]}
a6 {[%clk 00:34:29]} {[%emt 00:01:08]} 34. c4 {[%clk 01:25:00]} {[%emt
00:00:25]} Rf6 {[%clk 00:34:13]} {[%emt 00:00:46]} 35. Rh5+ {[%clk 01:23:45]}
{[%emt 00:01:45]} Ke6 {[%clk 00:33:55]} {[%emt 00:00:42]} 36. g4 {[%clk
01:23:26]} {[%emt 00:00:54]} Kd6 {[%clk 00:31:44]} {[%emt 00:02:43]} 37. g5
{[%clk 01:23:27]} {[%emt 00:00:28]} Re6 {[%clk 00:27:49]} {[%emt 00:04:25]} 38.
gxh6 {[%clk 01:21:38]} {[%emt 00:02:18]} gxh6 {[%clk 00:19:00]} {[%emt
00:09:21]} 39. b4 {[%clk 01:19:44]} {[%emt 00:02:23]} Rg6 {[%clk 00:14:21]}
{[%emt 00:05:10]} 40. bxc5+ {[%clk 01:18:08]} {[%emt 00:02:05]} bxc5 {[%clk
00:14:43]} {[%emt 00:00:08]} 41. Rd5+ {[%clk 01:18:13]} {[%emt 00:00:25]} Kc6
{[%clk 00:14:57]} {[%emt 00:00:17]} 42. Kf2 {[%clk 01:17:55]} {[%emt 00:00:48]}
Rg4 {[%clk 00:12:55]} {[%emt 00:02:32]} 43. Kf3 {[%clk 01:15:58]} {[%emt
00:02:26]} Rg6 {[%clk 00:10:52]} {[%emt 00:02:32]} 44. e5 {[%clk 01:16:02]}
{[%emt 00:00:28]} a5 {[%clk 00:07:23]} {[%emt 00:04:00]} 45. Rd6+ {[%clk
01:15:32]} Rxd6 {[%clk 00:07:15]} {[%emt 00:01:37]} 46. exd6 {[%clk 01:15:59]}
{[%emt 00:00:03]} Kxd6 {[%clk 00:07:36]} {[%emt 00:00:10]} 47. Kg4 {[%clk
01:16:24]} {[%emt 00:00:04]} Ke7 {[%clk 00:07:58]} {[%emt 00:00:08]} 48. Kh5
{[%clk 01:16:48]} {[%emt 00:00:06]} Kf7 {[%clk 00:08:13]} {[%emt 00:00:14]} 49.
Kxh6 {[%clk 01:17:13]} {[%emt 00:00:04]} Kg8 {[%clk 00:08:30]} {[%emt
00:00:14]} 50. Kg6 {[%clk 01:17:38]} {[%emt 00:00:05]} Kf8 {[%clk 00:08:17]}
{[%emt 00:00:43]} 51. Kf6 {[%clk 01:17:37]} {[%emt 00:00:31]} Ke8 {[%clk
00:08:04]} {[%emt 00:00:43]} 52. Ke6 {[%clk 01:18:01]} {[%emt 00:00:06]} a4
{[%clk 00:08:17]} {[%emt 00:00:18]} 53. Kd6 {[%clk 01:18:20]} {[%emt 00:00:10]}
Kd8 {[%clk 00:08:40]} {[%emt 00:00:08]} 54. Kxc5 {[%clk 01:18:45]} {[%emt
00:00:04]} Kd7 {[%clk 00:08:21]} {[%emt 00:00:49]} 55. Kb5 {[%clk 01:19:10]}
{[%emt 00:00:06]} Kd6 {[%clk 00:08:19]} {[%emt 00:00:32]} 56. Kxa4 {[%clk
01:19:32]} {[%emt 00:00:08]} Ke6 {[%clk 00:08:41]} {[%emt 00:00:07]} 57. g4
{[%clk 01:19:57]} {[%emt 00:00:06]} Ke7 {[%clk 00:08:48]} {[%emt 00:00:23]} 58.
g5 {[%clk 01:20:03]} {[%emt 00:00:24]} Ke8 {[%clk 00:09:04]} {[%emt 00:00:14]}
59. g6 {[%clk 01:20:29]} {[%emt 00:00:03]} Ke7 {[%clk 00:09:29]} {[%emt
00:00:04]} 60. g7 {[%clk 01:20:54]} {[%emt 00:00:05]} Kf7 {[%clk 00:09:56]}
{[%emt 00:00:04]} 61. Kb5 {[%clk 01:21:18]} {[%emt 00:00:05]} Kxg7 {[%clk
00:10:21]} {[%emt 00:00:05]} 62. a4 {[%clk 01:21:43]} {[%emt 00:00:05]} Kf7
{[%clk 00:10:46]} {[%emt 00:00:05]} 63. a5 {[%clk 01:22:08]} {[%emt 00:00:06]}
Ke7 {[%clk 00:10:39]} {[%emt 00:00:37]} 64. a6 {[%clk 01:22:34]} {[%emt
00:00:04]} Kd7 {[%clk 00:10:58]} {[%emt 00:00:12]} 65. a7 {[%clk 01:23:00]}
{[%emt 00:00:03]} 1-0